Workbook

Sheet COMECE AQUI - LEIA ATENTAMENTE
B1: CALCULADORA BACKUP FOX ESS
B5: TERMOS DE USO E RECOMENDAÇÕES | M5: OS CÁLCULOS DESTE ARQUIVO NÃO CONSIDERAM:
B6: A Calculadora de Backup da Fox ESS foi desenvolvida para auxiliar, de forma educativa, no pré-dimensionamento de soluções de backup de energia. Ressaltamos que os resultados gerados são apenas estimativas e não substituem um projeto técnico profissional. A Fox ESS não se responsabiliza por eventuais inadequações decorrentes do uso desta ferramenta. Para garantir que o sistema atenda plenamente às suas demandas, é indispensável a análise de um engenheiro ou especialista qualificado. Ter um sistema híbrido bem dimensionado é essencial para manter a continuidade de energia em aplicações residenciais, comerciais e industriais. A autonomia máxima considerada nesta ferramenta é de 24h. | M6: - Alimentação das cargas por outras fontes (Ex. Fotovoltaico/Solar, Gerador Diesel, Etc); - Coeficiente de simultaniedade das cargas (A planilha considera tudo ligado ao mesmo tempo); - Tempo necessário e Corrente Recomendada para recarga das baterias.

Sheet INSTRUÇÕES DE USO
B1: CALCULADORA BACKUP FOX ESS
B5: INSTRUÇÕES
B6: Para o uso desta planilha, é extremamente importante que seja feito um levantamento prévio das cargas que serão alimentadas pelo sistema. 1 - A planilha é previamente preenchida com dados de exemplo que devem ser alterados de acordo com os dados do cliente. 2 - Na aba de Dimensionamento, selecione dentre as opções disponíveis, o tempo de autonomia desejado pelo cliente 3 - Selecione o Tipo de Rede do cliente dentre as opções disponíveis. 4 - Preencha a Lista de Equipamentos nos campos editáveis (em roxo), de acordo com o levantamento feito. Ajuste os nomes dos aparelhos, potências, quantidades, o tempo de uso, o Fator de Potênica (FP - cargas 100% reativas como Notebook e Roteador tem FP = 1) e a Corrente de Pico (Ip/In) conforme necessário. NOTA1: As células que ficarem amarelas e/ou vermelhas, servem como um mero indicativo de potência mais alta (acima de 1kW) ou consumo alto (acima de 5 kWh). 5 - Após todas as informações preenchidas, a planilha apresenta na aba RESULTADO, o modelo de inversor e a quantidade sugerida, assim como a quantidade de baterias recomendadas no total. Agora é só conferir o kit com o distribuidor de sua preferência e ser feliz com a Fox ESS! NOTA2: Por padrão, a planilha considera DoD (Profundidade de Descarga) das baterias de 90%, e eficiência de 95%. A eficiência dos inversores varia conforme modelo. NOTA3: A calculadora considera o balanceamento das baterias por inversor (todos inversores devem ter a mesma quantidade de baterias entre si). LEMBRE-SE: Essa calculadora foi desenvolvida para auxiliar no pré-dimensionamento de soluções de backup de energia e ressaltamos que os resultados gerados são apenas estimativas e não substituem um projeto técnico profissional. Para garantir que o sistema atenda plenamente às suas demandas, é indispensável a análise de um engenheiro ou especialista qualificado. A Fox-ESS não se responsabiliza por eventuais inadequações decorrentes do uso desta ferramenta.

Sheet DIMENSIONAMENTO
B1: CALCULADORA BACKUP FOX ESS
C5: Campos Editáveis
B6: Autonomia ( Horas) | C6: 2
B7: Tipo de rede do Cliente: | C7: Bifásica (127/220 V)
B8: Aparelho | C8: Potência Nominal [W] | D8: Tensão Nominal [V] | E8: Quantidade | F8: Tempo Ligado [h] | G8: FP | H8: Ip/In | I8: Potência Total [W] | J8: Potência de Pico [kW] | K8: Consumo diário [Wh]
A9: 1 | B9: Laptop | C9: 100 | D9: 220 | E9: 2 | F9: 24 | G9: 1.0 | H9: 1.0 | I9: =IFERROR(IF(Equipmentos[[#This Row],[Quantidade]]="","",Equipmentos[[#This Row],[Potência Nominal '[W']]]*Equipmentos[[#This Row],[Quantidade]]/Equipmentos[[#This Row],[FP]]),"") -> 200 | J9: =Equipmentos[[#This Row],[Potência Total '[W']]]*Equipmentos[[#This Row],[Ip/In]] -> 200 | K9: =IFERROR(IF(Equipmentos[[#This Row],[Quantidade]]="","",Equipmentos[[#This Row],[Potência Total '[W']]]*Equipmentos[[#This Row],[Tempo Ligado '[h']]]),"") -> 4800
A10: 2 | B10: Modem / Wifi / Internet | C10: 20 | D10: 220 | E10: 1 | F10: 24 | G10: 1.0 | H10: 1.0 | I10: =IFERROR(IF(Equipmentos[[#This Row],[Quantidade]]="","",Equipmentos[[#This Row],[Potência Nominal '[W']]]*Equipmentos[[#This Row],[Quantidade]]/Equipmentos[[#This Row],[FP]]),"") -> 20 | J10: =Equipmentos[[#This Row],[Potência Total '[W']]]*Equipmentos[[#This Row],[Ip/In]] -> 20 | K10: =IFERROR(IF(Equipmentos[[#This Row],[Quantidade]]="","",Equipmentos[[#This Row],[Potência Total '[W']]]*Equipmentos[[#This Row],[Tempo Ligado '[h']]]),"") -> 480
A11: 3 | B11: Impressora | C11: 50 | D11: 220 | E11: 1 | F11: 0 | G11: 1.0 | H11: 1.0 | I11: =IFERROR(IF(Equipmentos[[#This Row],[Quantidade]]="","",Equipmentos[[#This Row],[Potência Nominal '[W']]]*Equipmentos[[#This Row],[Quantidade]]/Equipmentos[[#This Row],[FP]]),"") -> 50 | J11: =Equipmentos[[#This Row],[Potência Total '[W']]]*Equipmentos[[#This Row],[Ip/In]] -> 50 | K11: =IFERROR(IF(Equipmentos[[#This Row],[Quantidade]]="","",Equipmentos[[#This Row],[Potência Total '[W']]]*Equipmentos[[#This Row],[Tempo Ligado '[h']]]),"") -> 0
A12: 4 | B12: Luzes | C12: 15 | D12: 220 | E12: 10 | F12: 6 | G12: 1.0 | H12: 1.0 | I12: =IFERROR(IF(Equipmentos[[#This Row],[Quantidade]]="","",Equipmentos[[#This Row],[Potência Nominal '[W']]]*Equipmentos[[#This Row],[Quantidade]]/Equipmentos[[#This Row],[FP]]),"") -> 150 | J12: =Equipmentos[[#This Row],[Potência Total '[W']]]*Equipmentos[[#This Row],[Ip/In]] -> 150 | K12: =IFERROR(IF(Equipmentos[[#This Row],[Quantidade]]="","",Equipmentos[[#This Row],[Potência Total '[W']]]*Equipmentos[[#This Row],[Tempo Ligado '[h']]]),"") -> 900
A13: 5 | B13: TV | C13: 68 | D13: 220 | E13: 2 | F13: 4 | G13: 1.0 | H13: 1.0 | I13: =IFERROR(IF(Equipmentos[[#This Row],[Quantidade]]="","",Equipmentos[[#This Row],[Potência Nominal '[W']]]*Equipmentos[[#This Row],[Quantidade]]/Equipmentos[[#This Row],[FP]]),"") -> 136 | J13: =Equipmentos[[#This Row],[Potência Total '[W']]]*Equipmentos[[#This Row],[Ip/In]] -> 136 | K13: =IFERROR(IF(Equipmentos[[#This Row],[Quantidade]]="","",Equipmentos[[#This Row],[Potência Total '[W']]]*Equipmentos[[#This Row],[Tempo Ligado '[h']]]),"") -> 544
A14: 6 | B14: MicroOndas | C14: 800 | D14: 220 | E14: 1 | F14: 0.3 | G14: 1.0 | H14: 1.0 | I14: =IFERROR(IF(Equipmentos[[#This Row],[Quantidade]]="","",Equipmentos[[#This Row],[Potência Nominal '[W']]]*Equipmentos[[#This Row],[Quantidade]]/Equipmentos[[#This Row],[FP]]),"") -> 800 | J14: =Equipmentos[[#This Row],[Potência Total '[W']]]*Equipmentos[[#This Row],[Ip/In]] -> 800 | K14: =IFERROR(IF(Equipmentos[[#This Row],[Quantidade]]="","",Equipmentos[[#This Row],[Potência Total '[W']]]*Equipmentos[[#This Row],[Tempo Ligado '[h']]]),"") -> 240
A15: 7 | B15: Air Fryer | C15: 1500 | D15: 220 | E15: 0 | F15: 0 | G15: 1.0 | H15: 1.0 | I15: =IFERROR(IF(Equipmentos[[#This Row],[Quantidade]]="","",Equipmentos[[#This Row],[Potência Nominal '[W']]]*Equipmentos[[#This Row],[Quantidade]]/Equipmentos[[#This Row],[FP]]),"") -> 0 | J15: =Equipmentos[[#This Row],[Potência Total '[W']]]*Equipmentos[[#This Row],[Ip/In]] -> 0 | K15: =IFERROR(IF(Equipmentos[[#This Row],[Quantidade]]="","",Equipmentos[[#This Row],[Potência Total '[W']]]*Equipmentos[[#This Row],[Tempo Ligado '[h']]]),"") -> 0
A16: 8 | B16: Refrigerador | C16: 250 | D16: 220 | E16: 1 | F16: 24 | G16: 1.0 | H16: 1.0 | I16: =IFERROR(IF(Equipmentos[[#This Row],[Quantidade]]="","",Equipmentos[[#This Row],[Potência Nominal '[W']]]*Equipmentos[[#This Row],[Quantidade]]/Equipmentos[[#This Row],[FP]]),"") -> 250 | J16: =Equipmentos[[#This Row],[Potência Total '[W']]]*Equipmentos[[#This Row],[Ip/In]] -> 250 | K16: =IFERROR(IF(Equipmentos[[#This Row],[Quantidade]]="","",Equipmentos[[#This Row],[Potência Total '[W']]]*Equipmentos[[#This Row],[Tempo Ligado '[h']]]),"") -> 6000
A17: 9 | B17: Freezer | C17: 150 | D17: 220 | E17: 1 | F17: 24 | G17: 1.0 | H17: 1.0 | I17: =IFERROR(IF(Equipmentos[[#This Row],[Quantidade]]="","",Equipmentos[[#This Row],[Potência Nominal '[W']]]*Equipmentos[[#This Row],[Quantidade]]/Equipmentos[[#This Row],[FP]]),"") -> 150 | J17: =Equipmentos[[#This Row],[Potência Total '[W']]]*Equipmentos[[#This Row],[Ip/In]] -> 150 | K17: =IFERROR(IF(Equipmentos[[#This Row],[Quantidade]]="","",Equipmentos[[#This Row],[Potência Total '[W']]]*Equipmentos[[#This Row],[Tempo Ligado '[h']]]),"") -> 3600
A18: 10 | B18: Maquina Lavar | C18: 1500 | D18: 220 | E18: 1 | F18: 1 | G18: 1.0 | H18: 1.0 | I18: =IFERROR(IF(Equipmentos[[#This Row],[Quantidade]]="","",Equipmentos[[#This Row],[Potência Nominal '[W']]]*Equipmentos[[#This Row],[Quantidade]]/Equipmentos[[#This Row],[FP]]),"") -> 1500 | J18: =Equipmentos[[#This Row],[Potência Total '[W']]]*Equipmentos[[#This Row],[Ip/In]] -> 1500 | K18: =IFERROR(IF(Equipmentos[[#This Row],[Quantidade]]="","",Equipmentos[[#This Row],[Potência Total '[W']]]*Equipmentos[[#This Row],[Tempo Ligado '[h']]]),"") -> 1500
A19: 11 | B19: Chuveiro | C19: 7800 | D19: 220 | E19: 0 | F19: 0.5 | G19: 1.0 | H19: 1.0 | I19: =IFERROR(IF(Equipmentos[[#This Row],[Quantidade]]="","",Equipmentos[[#This Row],[Potência Nominal '[W']]]*Equipmentos[[#This Row],[Quantidade]]/Equipmentos[[#This Row],[FP]]),"") -> 0 | J19: =Equipmentos[[#This Row],[Potência Total '[W']]]*Equipmentos[[#This Row],[Ip/In]] -> 0 | K19: =IFERROR(IF(Equipmentos[[#This Row],[Quantidade]]="","",Equipmentos[[#This Row],[Potência Total '[W']]]*Equipmentos[[#This Row],[Tempo Ligado '[h']]]),"") -> 0
A20: 12 | B20: Ar Condicionado 9000 BTU | C20: 850 | D20: 220 | E20: 2 | F20: 12 | G20: 1.0 | H20: 1.0 | I20: =IFERROR(IF(Equipmentos[[#This Row],[Quantidade]]="","",Equipmentos[[#This Row],[Potência Nominal '[W']]]*Equipmentos[[#This Row],[Quantidade]]/Equipmentos[[#This Row],[FP]]),"") -> 1700 | J20: =Equipmentos[[#This Row],[Potência Total '[W']]]*Equipmentos[[#This Row],[Ip/In]] -> 1700 | K20: =IFERROR(IF(Equipmentos[[#This Row],[Quantidade]]="","",Equipmentos[[#This Row],[Potência Total '[W']]]*Equipmentos[[#This Row],[Tempo Ligado '[h']]]),"") -> 20400
A21: 13 | B21: Ar Condicionado 12000 BTU | C21: 1200 | D21: 220 | E21: 0 | F21: 4 | G21: 1.0 | H21: 1.0 | I21: =IFERROR(IF(Equipmentos[[#This Row],[Quantidade]]="","",Equipmentos[[#This Row],[Potência Nominal '[W']]]*Equipmentos[[#This Row],[Quantidade]]/Equipmentos[[#This Row],[FP]]),"") -> 0 | J21: =Equipmentos[[#This Row],[Potência Total '[W']]]*Equipmentos[[#This Row],[Ip/In]] -> 0 | K21: =IFERROR(IF(Equipmentos[[#This Row],[Quantidade]]="","",Equipmentos[[#This Row],[Potência Total '[W']]]*Equipmentos[[#This Row],[Tempo Ligado '[h']]]),"") -> 0
A22: 14 | B22: Aspirador de Pó | C22: 1400 | D22: 220 | E22: 0 | F22: 0 | G22: 1.0 | H22: 1.0 | I22: =IFERROR(IF(Equipmentos[[#This Row],[Quantidade]]="","",Equipmentos[[#This Row],[Potência Nominal '[W']]]*Equipmentos[[#This Row],[Quantidade]]/Equipmentos[[#This Row],[FP]]),"") -> 0 | J22: =Equipmentos[[#This Row],[Potência Total '[W']]]*Equipmentos[[#This Row],[Ip/In]] -> 0 | K22: =IFERROR(IF(Equipmentos[[#This Row],[Quantidade]]="","",Equipmentos[[#This Row],[Potência Total '[W']]]*Equipmentos[[#This Row],[Tempo Ligado '[h']]]),"") -> 0
A23: 15 | B23: Secador De cabelo | C23: 100 | D23: 220 | E23: 1 | F23: 0 | G23: 1.0 | H23: 1.0 | I23: =IFERROR(IF(Equipmentos[[#This Row],[Quantidade]]="","",Equipmentos[[#This Row],[Potência Nominal '[W']]]*Equipmentos[[#This Row],[Quantidade]]/Equipmentos[[#This Row],[FP]]),"") -> 100 | J23: =Equipmentos[[#This Row],[Potência Total '[W']]]*Equipmentos[[#This Row],[Ip/In]] -> 100 | K23: =IFERROR(IF(Equipmentos[[#This Row],[Quantidade]]="","",Equipmentos[[#This Row],[Potência Total '[W']]]*Equipmentos[[#This Row],[Tempo Ligado '[h']]]),"") -> 0
A24: 16 | B24: Outros | C24: 10000 | D24: 220 | E24: 0 | F24: 0.5 | G24: 1.0 | H24: 1.0 | I24: =IFERROR(IF(Equipmentos[[#This Row],[Quantidade]]="","",Equipmentos[[#This Row],[Potência Nominal '[W']]]*Equipmentos[[#This Row],[Quantidade]]/Equipmentos[[#This Row],[FP]]),"") -> 0 | J24: =Equipmentos[[#This Row],[Potência Total '[W']]]*Equipmentos[[#This Row],[Ip/In]] -> 0 | K24: =IFERROR(IF(Equipmentos[[#This Row],[Quantidade]]="","",Equipmentos[[#This Row],[Potência Total '[W']]]*Equipmentos[[#This Row],[Tempo Ligado '[h']]]),"") -> 0
I26: =IF(E9="","",SUM(I9:I24)/1000) -> 5.06 | J26: =IF(F9="","",SUM(J9:J24)/1000) -> 5.06 | K26: =SUM(K9:K24)/1000 -> 38.46
I27: Potência Nominal Total [kW] | J27: Potência de Pico Total [kW] | K27: Consumo diário Total [kWh]

Sheet Dados (hidden)
AA1: 384 | AB1: 27
B2: Nominal Voltage | E2: Fox ESS name | F2: Max Power EPS [W] | G2: Rated Voltage [V] | H2: Peak Power (60s) [W] | I2: Picture | J2: Efficiency | K2: Bat Máx Current | L2: Bat Input | N2: Model | O2: Nom. Capacity | P2: Nom. Power | Q2: Peak Power | R2: DoD | S2: RT Efficiency | T2: Voltage | U2: Nom. Current | V2: Picture | W2: Recom. Charge Cur.
B3: 380 | E3: H1-5.0-E-G2 | F3: 5000 | G3: 220 | H3: 5500 | J3: 97.00% | K3: 50 | L3: 1 | N3: EP5 | O3: 5.18 | P3: =O3 -> 5.18 | Q3: =Bateries[[#This Row],[Nom. Power]]*2.41 -> 12.4838 | R3: 90% | S3: 95% | T3: 192 | U3: 27 | W3: =Bateries[[#This Row],[Nom. Current]]/2 -> 13.5
B4: 220 | E4: KH7.5 | F4: 7500 | G4: 220 | H4: 10000 | J4: 97.20% | K4: 50 | L4: 1 | N4: EP11 | O4: 10.36 | P4: =O4 -> 10.36 | Q4: =Bateries[[#This Row],[Nom. Power]]*2.41 -> 24.9676 | R4: 90% | S4: 95% | T4: 384 | U4: 27 | W4: =Bateries[[#This Row],[Nom. Current]]/2 -> 13.5
B5: 127 | E5: KH10.5 | F5: 10500 | G5: 220 | H5: 15000 | J5: 97.20% | K5: 50 | L5: 1
E6: H1-5.7-US | F6: 5700 | G6: 127/220 | H6: 7695 | J6: 97.00% | K6: 50 | L6: 1
B7: Grid Type | E7: H1-7.5-US | F7: 7500 | G7: 127/220 | H7: 10125 | J7: 97.00% | K7: 50 | L7: 1
B8: Monofásica (220 V) | E8: H1-11.4-US | F8: 11400 | G8: 127/220 | H8: 15389 | J8: 97.00% | K8: 50 | L8: 1
B9: Bifásica (127/220 V) | E9: H3-PRO-11.5 | F9: 11500 | G9: 220 | H9: 12600 | J9: 97.30% | K9: 50 | L9: 2 | N9: kWh required: | O9: =IF(DIMENSIONAMENTO!K26=0,"",DIMENSIONAMENTO!K26/24*DIMENSIONAMENTO!C6) -> 3.205333333
B10: Trifásica (220/380 V) | E10: H3-PRO-20.0 | F10: 20000 | G10: 380 | H10: 24000 | J10: 97.30% | K10: 50 | L10: 2
B11: Trifásica (127/220 V) | E11: H3-PRO-17.3 | F11: 17300 | G11: 220 | H11: 19000 | J11: 97.30% | K11: 50 | L11: 2 | N11: Qty | O11: Capacity EP5 | P11: Power EP5 | Q11: Peak Power EP5 | R11: Efficiency EP5 | S11: Capacity EP11 | T11: Power EP11 | U11: Peak Power EP11 | V11: Efficieny EP11
E12: H3-PRO-30.0 | F12: 30000 | G12: 380 | H12: 36000 | J12: 97.30% | K12: 50 | L12: 2
B13: Other Values | N13: 1 | O13: =$P$3*$R$3*$S$3*P16 -> 4.43 | P13: =ROUNDDOWN(_xlfn.LET( _xlpm.entradas, IF(ISNUMBER(MATCH($H$88,$E$9:$E$12,0)),2,1), _xlpm.I_banco, $U$3*$P$16, _xlpm.I_inversor, VLOOKUP($H$88,$E$2:$L$12,7,0)*_xlpm.entradas*$I$88, $T$3*MIN(_xlpm.I_banco,_xlpm.I_inversor)/1000 ), 2 ) -> 5.18 | Q13: =BatCalc[[#This Row],[Power EP5]]*2.41 -> 12.48 | R13: =$S$3 -> 95% | S13: =$P$4*$R$4*$S$4*T16 -> 8.86 | T13: =ROUNDDOWN( _xlfn.LET( _xlpm.entradas, IF(ISNUMBER(MATCH($H$88,$E$9:$E$12,0)),2,1), _xlpm.corrente_banco, $U$4*$T$16, _xlpm.corrente_inversores, VLOOKUP($H$88,$E$2:$L$12,7,0)*_xlpm.entradas*$I$88, $T$4*MIN(_xlpm.corrente_banco,_xlpm.corrente_inversores)/1000 ), 2 ) -> 10.36 | U13: =BatCalc[[#This Row],[Power EP11]]*2.41 -> 24.97 | V13: =$S$4 -> 95%
B14: 1000 | E14: Fox ESS name | F14: Tech espc. | G14: Nominal Voltage | H14: Column1 | I14: Weight | J14: Column2 | K14: Picture
E15: HV Junction-Box | F15: - | G15: - | H15: - | I15: - | J15: - | N15: Battery per Inv input | P15: =IFERROR(ROUNDUP(IF(OR(H88=E9,H88=E10,H88=E11,H88=E12),ROUNDUP(P16/I88,0)*I88/RESULTADO!C10/2,RESULTADO!C13/RESULTADO!C10),0),"") -> 1 | T15: =ROUNDUP(IF(OR(H88=E9,H88=E10,H88=E11,H88=E12),RESULTADO!C15/RESULTADO!C10/2,RESULTADO!C15/RESULTADO!C10),0) -> 1
B16: 1 | E16: AI Link (A-1000) | F16: - | G16: - | H16: - | I16: - | J16: - | N16: Qty: | P16: =ROUNDUP( _xlfn.LET( _xlpm.capacidade, VLOOKUP("EP5",$N$2:$W$7,2,0), _xlpm.dod, VLOOKUP("EP5",$N$2:$W$7,5,0), _xlpm.eficiencia, VLOOKUP("EP5",$N$2:$W$7,6,0), O9/(_xlpm.capacidade*_xlpm.dod*_xlpm.eficiencia) ) /$I$88,0)*$I$88 -> 1 | T16: =ROUNDUP( _xlfn.LET( _xlpm.capacidade, VLOOKUP("EP11",$N$2:$W$7,2,0), _xlpm.dod, VLOOKUP("EP11",$N$2:$W$7,5,0), _xlpm.eficiencia, VLOOKUP("EP11",$N$2:$W$7,6,0), O9/(_xlpm.capacidade*_xlpm.dod*_xlpm.eficiencia) ) /$I$88,0)*$I$88 -> 1
B17: 2 | E17: Quadro Baixa Tensão
B18: 3 | E18: Fox Hub G2
B19: 4
B21: Bat Autonomy
B22: 1
B23: 2
B24: 3
B25: 4 | H25: Grid Selected | I25: kW required:
B26: 5 | H26: =DIMENSIONAMENTO!C7 -> Bifásica (127/220 V) | I26: =DIMENSIONAMENTO!I26*1000 -> 5056.00
B27: 6
B28: 7 | F28: REF | G28: QTY | H28: Single Phase | I28: Split phase | J28: 3x 220 | K28: 3x 380
B29: 8 | F29: 1 | G29: 1 | H29: =F3*J3 -> 4850 | I29: =$F$6*G29*J6 -> 5529 | J29: =$F$9*G29*J9 -> 11190 | K29: =$F$10*G29*J10 -> 19460
B30: 10 | F30: 2 | G30: 2 | J30: =J29*G30 -> 22379 | K30: =K29*G30 -> 38920
B31: 12 | F31: 3 | G31: 3
B32: 18 | F32: 4 | G32: 4
B33: 24 | F33: 5 | G33: 1 | H33: =F4*J4 -> 7290 | I33: =$F$7*G33*J7 -> 7275
F34: 6 | G34: 2 | H34: =H$33*$G34 -> 14580 | I34: =I33*G34 -> 14550
F35: 7 | G35: 3
F36: 8 | G36: 4
B37: Warnings: | C37: Reason | F37: 9 | G37: 5
B38: NÃO RECOMENDADO PARA ESTA APLICAÇÃO | C38: Too much Power | F38: 10 | G38: 1 | H38: =F5*J5 -> 10206 | I38: =F8*J8 -> 11058 | J38: =$F$11*G38*J11 -> 16833 | K38: =$F$12*G38*J12 -> 29190
B39: NÃO INDICADO PARA OPERAÇÃO EM BACKUP OU OFF-GRID | C39: Too much Power | F39: 11 | G39: 2 | H39: =H$38*$G39 -> 20412 | I39: =I$38*$G39 -> 22116 | J39: =$J$38*G39 -> 33666 | K39: =$K$38*G39 -> 58380
B40: PARALELISMO PERMITIDO APENAS COM INCLUSÃO DO FOX HUB (VERIFIQUE COMPATIBILIDADE) | C40: H1-US in Parallel | F40: 12 | G40: 3 | H40: =$H$38*G40 -> 30618 | I40: =I$38*$G40 -> 33174 | J40: =$J$38*G40 -> 50499 | K40: =$K$38*G40 -> 87570
B41: PARALELISMO PERMITIDO APENAS COM INCLUSÃO DO AI LINK | C41: H3-Pro in Parallel | F41: 13 | G41: 4 | H41: 40824 | I41: 44232 | J41: 67332 | K41: 116760
B42: PARALELISMO PERMITIDO APENAS COM INCLUSÃO DO EPS BOX | C42: H3-E in Parallel | F42: 14 | G42: 5 | H42: 51030 | I42: 55290 | J42: 84165 | K42: 145950
B43: VERIFIQUE AS TENSÕES NOMINAIS DOS APARELHOS E TIPO DE REDE | C43: Grid type and Load Voltage incompatible | F43: 15 | G43: 6 | H43: 61236 | I43: 66348 | J43: 100997 | K43: 175140
B44: PREENCHA O FATOR DE POTÊNCIA DE TODOS OS APARELHOS | C44: PF not filled | F44: 16 | G44: 7 | H44: 71442 | I44: 77406 | J44: 117830 | K44: 204330
B45: PREENCHA A CORRENTE DE PICO (Ip/In) DE TODOS OS APARELHOS | C45: Peak Current not filled | F45: 17 | G45: 8 | H45: 81648 | I45: 88464 | J45: 134663 | K45: 233520
B46: PREENCHA A TENSÃO NOMINAL DE TODOS OS APARELHOS | C46: Load voltage not filled | F46: 18 | G46: 9 | H46: 91854 | I46: 99522 | J46: 151496 | K46: 262710
B47: MÁXIMO DE 4 BATERIAS POR INVERSOR - UTILIZE EXCLUSIVAMENTE BATERIAS EP11 | C47: Too much Authonomy | F47: 19 | G47: 10 | H47: 102060 | I47: 110580 | J47: 168329 | K47: 291900
B48: MÁXIMO DE 4 BATERIAS POR INVERSOR - AUMENTE A QUANTIDADE DE INVERSORES (AUMENTE AS CARGAS EM KW) | C48: Too much Authonomy
B49: MÁXIMO DE 8 BATERIAS POR INVERSOR - AUMENTE A QUANTIDADE DE INVERSORES (AUMENTE AS CARGAS EM KW) | C49: Too much Authonomy | G49: Minimum Power: | H49: =MIN(IF(H29:H47>=$I$26,H29:H47)) -> 7290 | I49: =MIN(IF(I29:I47>=$I$26,I29:I47)) -> 5529 | J49: =MIN(IF(J29:J47>=$I$26,J29:J47)) -> 11189.5 | K49: =MIN(IF(K29:K47>=$I$26,K29:K47)) -> 19460
B50: JUNCTION BOX OBRIGATÓRIA APENAS EM CASO DE USO DA BATERIA EP5 | C50: Batteries in Parallel | G50: REF: | H50: =_xlfn.XLOOKUP( MIN(_xlfn._xlws.FILTER(InvtCalc[Single Phase],InvtCalc[Single Phase]>=$I$26)), InvtCalc[Single Phase], InvtCalc[REF] ) -> 5 | I50: =_xlfn.XLOOKUP( MIN(_xlfn._xlws.FILTER(InvtCalc[Split phase],InvtCalc[Split phase]>=$I$26)), InvtCalc[Split phase], InvtCalc[REF] ) -> 1 | J50: =_xlfn.XLOOKUP( MIN(_xlfn._xlws.FILTER(InvtCalc[3x 220],InvtCalc[3x 220]>=$I$26)), InvtCalc[3x 220], InvtCalc[REF] ) -> 1 | K50: =_xlfn.XLOOKUP( MIN(_xlfn._xlws.FILTER(InvtCalc[3x 380],InvtCalc[3x 380]>=$I$26)), InvtCalc[3x 380], InvtCalc[REF] ) -> 1
B51: POTÊNCIA DAS BATERIAS INSUFICIENTE NO MODO OFF-GRID - CONSIDERE MAIS BATERIAS (AUMENTANDO A AUTONOMIA) OU OUTRAS FONTES DE ENERGIA (EX.: FOTOVOLTAICO) | C51: Low Bat Power | G51: Model: | H51: =_xlfn.IFS(H50<5,E3,H50<9,E4,H50<=19,E5) -> KH7.5 | I51: =_xlfn.IFS(I50<5,E6,I50<9,E7,I50<=19,E8) -> H1-5.7-US | J51: =_xlfn.IFS(J50<5,E9,J50<9,"ERRO",J50<=19,E11) -> H3-PRO-11.5 | K51: =_xlfn.IFS(K50<5,E10,K50<9,"ERRO",K50<=19,E12) -> H3-PRO-20.0
B52: POTÊNCIA DAS BATERIAS EP5 INSUFICIENTE NO MODO OFF-GRID - CONSIDERE MAIS BATERIAS (AUMENTANDO A AUTONOMIA), OUTRAS FONTES DE ENERGIA (EX.: FOTOVOLTAICO), OU UTILIZE A EP11 | C52: Low Bat Power | G52: Qty: | H52: =ROUNDUP(H49/VLOOKUP(H51,Inverters[#All],2,0),0) -> 1 | I52: =ROUNDUP(I49/VLOOKUP(I51,Inverters[#All],2,0),0) -> 1 | J52: =ROUNDUP(J49/VLOOKUP(J51,Inverters[#All],2,0),0) -> 1 | K52: =ROUNDUP(K49/VLOOKUP(K51,Inverters[#All],2,0),0) -> 1
B53: REDUZA A POTÊNCIA DE PICO DAS CARGAS, PARA VIABILIZAR O SISTEMA | C53: Too much Peak Power
B54: PARA SISTEMAS COM BATERIAS EP5, CONSIDERE O USO DE 2 JUNCTION BOX | C54: EP5 in Parallel
B55: CUIDADO COM O TEMPO DE CARGA DAS BATERIAS | H55: kWp required: | I55: =DIMENSIONAMENTO!J26*1000 -> 5056.00
F56: REF | G56: Qty | H56: Monofásica | I56: Bifásica | J56: Tri220 | K56: Tri380
F57: 1 | G57: 1 | H57: =H3*J3 -> 5335 | I57: =$H$6*G57 -> 7695 | J57: =H$9*G57*J9 -> 12260 | K57: =$H$10*G57*J10 -> 23352
F58: 2 | G58: 2 | J58: =J57*G58 -> 24520 | K58: =K57*G58 -> 46704
F59: 3 | G59: 3
F60: 4 | G60: 4
F61: 5 | G61: 1 | H61: =H4*J4 -> 9720 | I61: =$H$7*G61 -> 10125
F62: 6 | G62: 2 | H62: =H61*$G62 -> 19440 | I62: =$H$7*G62 -> 20250
F63: 7 | G63: 3
F64: 8 | G64: 4
F65: 9 | G65: 5
F66: 10 | G66: 1 | H66: =H5*J5 -> 14580 | I66: =$H$8*G66*J8 -> 14927 | J66: =$H$11*G66*J11 -> 18487 | K66: =$H$12*G66*J12 -> 35028
F67: 11 | G67: 2 | H67: =$H$66*$G67 -> 29160 | I67: =$I$66*G67 -> 29855 | J67: =$J$66*G67 -> 36974 | K67: =$K$66*G67 -> 70056
F68: 12 | G68: 3 | H68: =$H$66*$G68 -> 43740 | I68: =$I$66*G68 -> 44782 | J68: =$J$66*G68 -> 55461 | K68: =$K$66*G68 -> 105084
F69: 13 | G69: 4 | H69: 58320 | I69: 59709 | J69: 73948 | K69: 140112
F70: 14 | G70: 5 | H70: 72900 | I70: 74637 | J70: 92435 | K70: 175140
F71: 15 | G71: 6 | H71: 87480 | I71: 89564 | J71: 110922 | K71: 210168
F72: 16 | G72: 7 | H72: 102060 | I72: 104491 | J72: 129409 | K72: 245196
F73: 17 | G73: 8 | H73: 116640 | I73: 119419 | J73: 147896 | K73: 280224
F74: 18 | G74: 9 | H74: 131220 | I74: 134346 | J74: 166383 | K74: 315252
F75: 19 | G75: 10 | H75: 145800 | I75: 149273 | J75: 184870 | K75: 350280
G77: Minimum Power: | H77: =MIN(IF(InvCalcPeak[Monofásica]>=$I$55,InvCalcPeak[Monofásica])) -> 5335 | I77: =MIN(IF(InvCalcPeak[Bifásica]>=$I$55,InvCalcPeak[Bifásica])) -> 7695 | J77: =MIN(IF(InvCalcPeak[Tri220]>=$I$55,InvCalcPeak[Tri220])) -> 12259.8 | K77: =MIN(IF(InvCalcPeak[Tri380]>=$I$55,InvCalcPeak[Tri380])) -> 23352
G78: REF: | H78: =_xlfn.XLOOKUP( MIN(_xlfn._xlws.FILTER(InvCalcPeak[Monofásica],InvCalcPeak[Monofásica]>=$I$26)), InvCalcPeak[Monofásica], InvCalcPeak[REF] ) -> 1 | I78: =_xlfn.XLOOKUP( MIN(_xlfn._xlws.FILTER(InvCalcPeak[Bifásica],InvCalcPeak[Bifásica]>=$I$26)), InvCalcPeak[Bifásica], InvCalcPeak[REF] ) -> 1 | J78: =_xlfn.XLOOKUP( MIN(_xlfn._xlws.FILTER(InvCalcPeak[Tri220],InvCalcPeak[Tri220]>=$I$26)), InvCalcPeak[Tri220], InvCalcPeak[REF] ) -> 1 | K78: =_xlfn.XLOOKUP( MIN(_xlfn._xlws.FILTER(InvCalcPeak[Tri380],InvCalcPeak[Tri380]>=$I$26)), InvCalcPeak[Tri380], InvCalcPeak[REF] ) -> 1
G79: Model: | H79: =_xlfn.IFS(H78<5,E3,H78<9,E4,H78<=19,E5) -> H1-5.0-E-G2 | I79: =_xlfn.IFS(I78<5,E6,I78<9,E7,I78<=19,E8) -> H1-5.7-US | J79: =_xlfn.IFS(J78<5,E9,J78<9,"ERRO",J78<=19,E11) -> H3-PRO-11.5 | K79: =_xlfn.IFS(K78<5,E10,K78<9,"ERRO",K78<=19,E12) -> H3-PRO-20.0
G80: Qty: | H80: =VLOOKUP(H78,InvCalcPeak[#All],2,0) -> 1 | I80: =VLOOKUP(I78,InvCalcPeak[#All],2,0) -> 1 | J80: =VLOOKUP(J78,InvCalcPeak[#All],2,0) -> 1 | K80: =VLOOKUP(K78,InvCalcPeak[#All],2,0) -> 1
H84: Check Peak:
G85: Calc over Nom Power: | H85: =_xlfn.IFS(DIMENSIONAMENTO!C7=Dados!B8,Dados!H51,DIMENSIONAMENTO!C7=Dados!B9,Dados!I51,DIMENSIONAMENTO!C7=Dados!B10,Dados!K51,DIMENSIONAMENTO!C7=Dados!B11,Dados!J51) -> H1-5.7-US | I85: =_xlfn.IFS(DIMENSIONAMENTO!C7=Dados!B8,Dados!H52,DIMENSIONAMENTO!C7=Dados!B9,Dados!I52,DIMENSIONAMENTO!C7=Dados!B10,Dados!K52,DIMENSIONAMENTO!C7=Dados!B11,Dados!J52) -> 1
G86: Calc over Peak Power: | H86: =_xlfn.IFS(DIMENSIONAMENTO!C7=Dados!B8,H79,DIMENSIONAMENTO!C7=Dados!B9,Dados!I79,DIMENSIONAMENTO!C7=Dados!B10,Dados!K79,DIMENSIONAMENTO!C7=Dados!B11,Dados!J79) -> H1-5.7-US | I86: =_xlfn.IFS(DIMENSIONAMENTO!C7=Dados!B8,Dados!H80,DIMENSIONAMENTO!C7=Dados!B9,Dados!I80,DIMENSIONAMENTO!C7=Dados!B10,Dados!K80,DIMENSIONAMENTO!C7=Dados!B11,Dados!J80) -> 1 | K86: =MAX(VLOOKUP(H85,Inverters[#All],4,0),VLOOKUP(H86,Inverters[#All],4,0)) -> 7695
G88: Final Decision | H88: =IF(VLOOKUP(H85,Inverters[#All],4,0)*I85>I55,H85,H86) -> H1-5.7-US | I88: =MAX(I85:I86) -> 1

Sheet RESULTADO
B1: CALCULADORA BACKUP FOX ESS
E6: AVISOS: | I6: =VLOOKUP(B10,Dados!E2:L12,5,0) ->  | M6: =IFERROR(_xlfn.IFS(E8=Dados!B40,Dados!K18,E8=Dados!B41,Dados!K16),"") -> 
B7: Lista de Produtos (Total Fox ESS) | E7: =_xlfn.IFNA( _xlfn.IFS( AND(OR(B10=Dados!E9,B10=Dados!E10,B10=Dados!E11,B10=Dados!E12),(Dados!T16/RESULTADO!C10)>8),Dados!B49, AND(OR(B10=Dados!E3,B10=Dados!E4,B10=Dados!E5,B10=Dados!E6,B10=Dados!E7,B10=Dados!E8),(Dados!T16/RESULTADO!C10)>4),Dados!B48, AND(Dados!P15>1,Dados!T15<2),Dados!B50, AND(OR(B10=Dados!E9,B10=Dados!E10,B10=Dados!E11,B1=Dados!E12),C15/C10<3,Dados!P16/C10>2,C13<>""),Dados!B50, AND(OR(B10=Dados!E9,B10=Dados!E10,B10=Dados!E11,B1=Dados!E12),C15<5,C13>5,C13<>""),Dados!B54 ), "" ) -> 
B8: Modelo | C8: Quantidade | E8: =_xlfn.IFS(C10>10,Dados!B38,C10<2,"",C10>4,Dados!B39,B10=Dados!E6,Dados!B40,B10=Dados!E7,Dados!B40,B10=Dados!E8,Dados!B40,B10=Dados!E9,Dados!B41,B10=Dados!E11,Dados!B41,B10=Dados!E10,Dados!B41,B10=Dados!E12,Dados!B41,B10=Dados!E3,"",B10=Dados!E4,"",B10=Dados!E5,"") ->  | K8: =IF(M6="","","+") -> 
B10: =Dados!H88 -> H1-5.7-US | C10: =Dados!I88 -> 1 | E10: =_xlfn.IFS( COUNTBLANK(DIMENSIONAMENTO!H8:H24)>0, Dados!B45, COUNTBLANK(DIMENSIONAMENTO!D8:D24)>0, Dados!B46, COUNTBLANK(DIMENSIONAMENTO!G8:G24)>0, Dados!B44, OR( AND(DIMENSIONAMENTO!C7=Dados!B8, OR(COUNTIF(Equipmentos[Tensão Nominal '[V']],127)>0, COUNTIF(Equipmentos[Tensão Nominal '[V']],380)>0)), AND(DIMENSIONAMENTO!C7=Dados!B9, COUNTIF(Equipmentos[Tensão Nominal '[V']],380)>0), AND(DIMENSIONAMENTO!C7=Dados!B10, COUNTIF(Equipmentos[Tensão Nominal '[V']],127)>0), AND(DIMENSIONAMENTO!C7=Dados!B11, COUNTIF(Equipmentos[Tensão Nominal '[V']],380)>0) ), Dados!B43, TRUE, "" ) -> 
B11: =IFERROR(IF(OR(Dados!P15>1,Dados!T15>1),Dados!E15,""),"") ->  | C11: =IF( B11<>"HV Junction-Box", "", IFERROR( IF( OR( AND(N($C$13)>0, N($C$13)/N($C$10)=3), AND(N($C$15)>0, N($C$15)/N($C$10)=3) ), $C$10, _xlfn.LET( _xlpm.inversores, N($C$10), _xlpm.entradas, N(VLOOKUP(B10,Inverters[#All],8,0)), _xlpm.total_bat, N($C$13)+N($C$15), MIN(INT(_xlpm.total_bat/2), _xlpm.entradas*_xlpm.inversores) ) ), "" ) ) -> 
B12: =IFERROR(_xlfn.IFS(E8=Dados!B40,Dados!E18,E8=Dados!B41,Dados!E16),"") ->  | C12: =IF(B12="","","1.00") ->  | E12: DICAS: | I12: =IF(C11="","",Dados!K15) -> 
B13: =IF(Dados!P16/C10<5,Dados!N3,"") -> EP5 | C13: =IF(B13="","",Dados!P16) -> 1 | E13: =_xlfn.IFNA(_xlfn.IFS(C18>=F22,Dados!B51, C18>=F18,Dados!B52, OR(Dados!I88>Dados!I85,Dados!H88<>Dados!H85),Dados!B53),"") -> 
B14: =IF(B13<>"","OU","") -> OU
B15: =Dados!N4 -> EP11 | C15: =Dados!T16 -> 1 | I15: =IF(B13="","",VLOOKUP(B13,Dados!N2:V7,9,0)) ->  | M15: =IF(B15="","",VLOOKUP(B15,Dados!N2:V7,9,0)) -> 
E16: Potência Alcançada (Inversor) [kW] | F16: =IFERROR(VLOOKUP(B10,Inverters[#All],MATCH(Inverters[[#Headers],[Max Power EPS '[W']]],Inverters[#Headers],0),FALSE)*C10/1000*VLOOKUP(B10,Inverters[#All],6,0),"") -> 5.53
K17: =B14 -> OU
B18: Potência Necessária (kW) | C18: =DIMENSIONAMENTO!I26 -> 5.06 | E18: Potência Alcançada EP5 [kW] | F18: =IF(C13="","",Dados!P13) -> 5.18
B19: Autonomia Desejada [h] | C19: =DIMENSIONAMENTO!C6 -> 2 | E19: Autonomia Alcançada (EP5 - plena carga) [h] | F19: =IF(C13="","",F20*C19/C20) -> 2.76
B20: Capacidade Necessária (kWh) | C20: =IF(DIMENSIONAMENTO!K26=0,"",DIMENSIONAMENTO!K26/24*DIMENSIONAMENTO!C6) -> 3.21 | E20: Capacidade Alcançada (EP5) [kWh] | F20: =IFERROR(IF(C13="","",Dados!O13),"") -> 4.43
E22: Potência Alcançada EP11 [kW] | F22: =Dados!T13 -> 10.36
E23: Autonomia Alcançada (EP11 - plena carga) [h] | F23: =F24*C19/C20 -> 5.53
E24: Capacidade Alcançada (EP11) [kWh] | F24: =Dados!S13 -> 8.86
G25: C15=2
G26: ),384*27*2,
G27: AND(
G28: OR(B10=Dados!D9,B10=Dados!D10,B10=Dados!D11,B10=Dados!D12),
G29: C15=3
G30: ),384*27+384*50,
G31: TRUE,VLOOKUP(C15/C10,BatCalc[#All],7,0)*C10
G32: )
